[Event "10th Iberoamericano-ch 2024"]
[Site "Linares"]
[Date "2024.09.29"]
[Round "7.11"]
[White "Marin Ferragut, Pau"]
[Black "Vega Gutierrez, Sabrina"]
[Result "0-1"]
[ECO "B27"]
[WhiteElo "2348"]
[BlackElo "2374"]
[Annotator "RC"]
[PlyCount "62"]
[EventDate "2024.09.25"]
[EventType "swiss"]
[EventCountry "ESP"]
[SourceTitle "playchess.com"]
[Source "ChessBase"]
[SourceQuality "1"]
[TimeControl "5400+30"]

1. e4 {[%emt 0:00:24]} c5 {[%emt 0:00:19]} 2. Nf3 {[%emt 0:00:25]} g6 {[%emt 0:00:21]} 3. c3 {[%emt 0:00:14]} d5 {[%emt 0:00:15]} 4. e5 {[%emt 0:00:35]} a6 {[%emt 0:00:21]} 5. d4 {[%emt 0:00:37]} Nc6 {[%emt 0:00:15]} 6. h3 {[%emt 0:01:29]} Bg7 {[%emt 0:00:29]} 7. Be2 {[%emt 0:01:07]} f6 {[%emt 0:00:30]} 8. Bf4 {[%emt 0:02:38]} fxe5 {[%emt 0:03:41]} 9. dxe5 {[%emt 0:03:22]} Nh6 {[%emt 0:01:30]} 10. Bd3 {[%emt 0:05:00]} O-O {[%emt 0:02:02]} 11. Bh2 {[%emt 0:01:19]} Qb6 {[%emt 0:05:51]} 12. b3 {[%emt 0:04:25]} Nf7 {[%emt 0:09:44]} 13. Bc2 {[%emt 0:10:30]} d4 {[%emt 0:09:25]} 14. Qe2 {[%emt 0:11:59]} dxc3 {[%emt 0:01:35]} 15. O-O {[%emt 0:01:25]} Nd4 {[%emt 0:02:07]} 16. Nxd4 {[%emt 0:00:05]} cxd4 {[%emt 0:00:10]} 17. Bd3 {[%emt 0:00:02]} Qc5 {[%emt 0:03:18]} 18. f4 {[%emt 0:00:32]} Bf5 {[%emt 0:02:03]} 19. Rc1 {[%emt 0:02:20]} Bxd3 {[%emt 0:05:31]} 20. Qxd3 {[%emt 0:00:01]} Nd8 {[%emt 0:00:29]} 21. Nd2 {[%emt 0:00:36]} Ne6 {[%emt 0:02:03]} 22. g3 {[%emt 0:01:58]} Qb5 {[%emt 0:03:26]} 23. Nc4 {[%emt 0:02:13]} Rad8 {[%emt 0:00:29]} 24. h4 {[%emt 0:03:04]} Qd5 {[%emt 0:07:26]} 25. b4 {[%emt 0:01:09]} Qb5 {[%emt 0:03:44]} 26. a4 {[%emt 0:02:00]} Qxb4 {[%emt 0:02:50]} 27. Rcb1 {[%emt 0:00:01]} Nc5 {[%emt 0:10:17]} 28. Qe2 {[%emt 0:01:29]} d3 {[%emt 0:00:46]} 29. Qa2 {[%emt 0:00:24]} Qxa4 {[%emt 0:00:17]} 30. Qxa4 {[%emt 0:01:09]} Nxa4 {[%emt 0:00:06]} 31. Rxa4 {[%emt 0:00:05]} b5 {[%emt 0:01:21]} 0-1

[Event "10th Iberoamericano-ch 2024"]
[Site "Linares"]
[Date "2024.09.29"]
[Round "7.12"]
[White "Santos Flores, Alberto"]
[Black "Rodriguez Vila, Andres"]
[Result "0-1"]
[ECO "E70"]
[WhiteElo "2168"]
[BlackElo "2417"]
[Annotator "RC"]
[PlyCount "58"]
[EventDate "2024.09.25"]
[EventType "swiss"]
[EventCountry "ESP"]
[SourceTitle "playchess.com"]
[Source "ChessBase"]
[SourceQuality "1"]
[TimeControl "5400+30"]

1. d4 {[%emt 0:00:03]} Nf6 {[%emt 0:01:22]} 2. c4 {[%emt 0:00:29]} g6 {[%emt 0:00:05]} 3. Nc3 {[%emt 0:00:17]} Bg7 {[%emt 0:00:05]} 4. e4 {[%emt 0:00:06]} d6 {[%emt 0:00:06]} 5. Bg5 {[%emt 0:00:34]} c5 {[%emt 0:01:16]} 6. d5 {[%emt 0:00:20]} b5 {[%emt 0:01:18]} 7. cxb5 {[%emt 0:00:12]} a6 {[%emt 0:00:07]} 8. bxa6 {[%emt 0:00:46]} O-O {[%emt 0:00:12]} 9. Qd2 {[%emt 0:00:02]} Qa5 {[%emt 0:00:41]} 10. f3 {[%emt 0:01:09]} Nbd7 {[%emt 0:06:33]} 11. a4 {[%emt 0:07:13]} Bxa6 {[%emt 0:01:04]} 12. Bxa6 {[%emt 0:01:18]} Rxa6 {[%emt 0:01:18]} 13. Nge2 {[%emt 0:04:18]} Rb8 {[%emt 0:06:51]} 14. O-O {[%emt 0:03:19]} Rb4 {[%emt 0:04:34]} 15. Qc2 {[%emt 0:09:14]} Qb6 {[%emt 0:05:41]} 16. Nb5 {[%emt 0:03:42]} c4+ {[%emt 0:04:07]} 17. Kh1 {[%emt 0:01:02]} Nc5 {[%emt 0:01:12]} 18. Be3 {[%emt 0:16:20]} Nfd7 {[%emt 0:00:05]} 19. Bd4 {[%emt 0:02:30]} Ne5 {[%emt 0:04:15]} 20. Bc3 {[%emt 0:10:15]} Rbxa4 {[%emt 0:01:42]} 21. Rxa4 {[%emt 0:00:03]} Nxa4 {[%emt 0:01:29]} 22. Nbd4 {[%emt 0:01:01]} Nd3 {[%emt 0:02:09]} 23. b3 {[%emt 0:07:49]} Nxc3 {[%emt 0:23:33]} 24. Qxc3 {[%emt 0:00:02]} cxb3 {[%emt 0:02:20]} 25. Qxd3 {[%emt 0:05:38]} b2 {[%emt 0:00:04]} 26. Nb5 {[%emt 0:02:20]} Ra1 {[%emt 0:00:40]} 27. Nec3 {[%emt 0:00:10]} Rc1 {[%emt 0:04:22]} 28. Nb1 {[%emt 0:06:46]} Qf2 {[%emt 0:00:00]} 29. Rd1 {[%emt 0:01:27]} Qe1+ {[%emt 0:00:00]} 0-1

[Event "10th Iberoamericano-ch 2024"]
[Site "Linares"]
[Date "2024.09.29"]
[Round "7.13"]
[White "Ticona Rocabado, Licael Roderick"]
[Black "Zambrana, Osvaldo"]
[Result "0-1"]
[ECO "E10"]
[WhiteElo "2321"]
[BlackElo "2405"]
[Annotator "RC"]
[PlyCount "126"]
[EventDate "2024.09.25"]
[EventType "swiss"]
[EventCountry "ESP"]
[SourceTitle "playchess.com"]
[Source "ChessBase"]
[SourceQuality "1"]
[TimeControl "5400+30"]

1. d4 {[%emt 0:08:41]} Nf6 {[%emt 0:00:11]} 2. c4 {[%emt 0:00:07]} e6 {[%emt 0:00:13]} 3. Nf3 {[%emt 0:00:21]} d5 {[%emt 0:00:08]} 4. e3 {[%emt 0:00:04]} Be7 {[%emt 0:00:28]} 5. Nbd2 {[%emt 0:00:14]} O-O {[%emt 0:01:33]} 6. b3 {[%emt 0:00:07]} c5 {[%emt 0:01:43]} 7. Bd3 {[%emt 0:02:21]} cxd4 {[%emt 0:01:37]} 8. exd4 {[%emt 0:00:35]} b6 {[%emt 0:02:23]} 9. O-O {[%emt 0:00:21]} Bb7 {[%emt 0:00:15]} 10. Bb2 {[%emt 0:01:00]} Nc6 {[%emt 0:01:49]} 11. Rc1 {[%emt 0:00:17]} dxc4 {[%emt 0:01:44]} 12. bxc4 {[%emt 0:01:51]} Qd6 {[%emt 0:03:04]} 13. Qe2 {[%emt 0:03:42]} Rfe8 {[%emt 0:02:10]} 14. Rfd1 {[%emt 0:06:04]} Rac8 {[%emt 0:01:56]} 15. Ne4 {[%emt 0:02:58]} Qf4 {[%emt 0:02:43]} 16. d5 {[%emt 0:10:50]} exd5 {[%emt 0:16:40]} 17. cxd5 {[%emt 0:00:17]} Nxd5 {[%emt 0:00:12]} 18. Bc4 {[%emt 0:03:06]} Ncb4 {[%emt 0:12:08]} 19. Be5 {[%emt 0:01:14]} Qh6 {[%emt 0:00:14]} 20. a3 {[%emt 0:01:27]} b5 {[%emt 0:01:42]} 21. Bxd5 {[%emt 0:07:29]} Nxd5 {[%emt 0:01:45]} 22. Rxc8 {[%emt 0:00:22]} Rxc8 {[%emt 0:00:11]} 23. Qxb5 {[%emt 0:00:09]} Rc1 {[%emt 0:02:37]} 24. Qf1 {[%emt 0:05:47]} Rxd1 {[%emt 0:00:20]} 25. Qxd1 {[%emt 0:00:02]} Bxa3 {[%emt 0:00:14]} 26. Ned2 {[%emt 0:01:04]} Qc6 {[%emt 0:00:46]} 27. Nf1 {[%emt 0:01:38]} Bf8 {[%emt 0:06:19]} 28. Nd4 {[%emt 0:00:55]} Qg6 {[%emt 0:00:06]} 29. Qb3 {[%emt 0:01:00]} Nb4 {[%emt 0:00:52]} 30. Ne3 {[%emt 0:06:54]} Qd3 {[%emt 0:02:55]} 31. Qb2 {[%emt 0:00:11]} Be4 {[%emt 0:02:41]} 32. Nb3 {[%emt 0:05:11]} Qb1+ {[%emt 0:00:34]} 33. Qxb1 {[%emt 0:00:05]} Bxb1 {[%emt 0:00:07]} 34. Na5 {[%emt 0:00:13]} Bd3 {[%emt 0:00:37]} 35. Bd4 {[%emt 0:00:08]} a6 {[%emt 0:00:07]} 36. Bb6 {[%emt 0:00:17]} Bb5 {[%emt 0:00:14]} 37. h4 {[%emt 0:00:54]} f6 {[%emt 0:00:19]} 38. g4 {[%emt 0:00:07]} Kf7 {[%emt 0:00:06]} 39. Kg2 {[%emt 0:00:36]} Ke6 {[%emt 0:00:05]} 40. f4 {[%emt 0:00:10]} Nd5 {[%emt 0:00:33]} 41. f5+ {[%emt 0:01:26]} Ke5 {[%emt 0:00:07]} 42. Nxd5 {[%emt 0:00:23]} Kxd5 {[%emt 0:00:03]} 43. Kf3 {[%emt 0:00:11]} Ba4 {[%emt 0:00:49]} 44. Bd8 {[%emt 0:00:55]} Bd1+ {[%emt 0:00:19]} 45. Kg3 {[%emt 0:00:01]} Bd6+ {[%emt 0:00:14]} 46. Kh3 {[%emt 0:00:04]} h5 {[%emt 0:02:06]} 47. gxh5 {[%emt 0:00:40]} Bxh5 {[%emt 0:00:10]} 48. Nb7 {[%emt 0:00:13]} Be5 {[%emt 0:00:11]} 49. Be7 {[%emt 0:00:38]} Ke4 {[%emt 0:00:23]} 50. Kg2 {[%emt 0:00:22]} Kxf5 {[%emt 0:00:08]} 51. Bb4 {[%emt 0:00:46]} Be2 {[%emt 0:00:16]} 52. Nd6+ {[%emt 0:00:36]} Kg4 {[%emt 0:00:30]} 53. Ne8 {[%emt 0:00:25]} g6 {[%emt 0:00:26]} 54. Be7 {[%emt 0:00:13]} Bf3+ {[%emt 0:04:53]} 55. Kf2 {[%emt 0:00:08]} Bd4+ {[%emt 0:00:05]} 56. Kf1 {[%emt 0:00:04]} f5 {[%emt 0:00:49]} 57. Bd8 {[%emt 0:00:06]} Bc6 {[%emt 0:00:32]} 58. Nd6 {[%emt 0:00:21]} Kf3 {[%emt 0:00:24]} 59. h5 {[%emt 0:00:22]} Bc5 {[%emt 0:01:31]} 60. h6 {[%emt 0:00:47]} Bxd6 {[%emt 0:09:48]} 61. Bf6 {[%emt 0:00:10]} Bc5 {[%emt 0:00:17]} 62. Ke1 {[%emt 0:01:05]} Bf2+ {[%emt 0:00:08]} 63. Kd1 {[%emt 0:00:09]} Ba4+ {[%emt 0:00:02]} 0-1

[Event "10th Iberoamericano-ch 2024"]
[Site "Linares"]
[Date "2024.09.29"]
[Round "7.14"]
[White "Matamoros Franco, Carlos S."]
[Black "Blanco Acevedo, Cristobal Jose"]
[Result "1-0"]
[ECO "A05"]
[WhiteElo "2404"]
[BlackElo "2301"]
[Annotator "TA"]
[PlyCount "139"]
[EventDate "2024.09.25"]
[EventType "swiss"]
[EventCountry "ESP"]
[SourceTitle "playchess.com"]
[Source "ChessBase"]
[SourceQuality "1"]
[TimeControl "5400+30"]

{[%evp 13,139,13,31,33,27,22,27,12,25,0,0,0,14,14,9,2,14,8,28,23,64,58,60,56,52,35,62,56,93,79,88,89,80,94,89,87,130,91,78,78,91,94,93,87,108,100,116,113,120,113,122,121,122,76,99,91,129,93,125,45,52,52,52,18,27,8,8,8,8,8,27,27,27,27,27,27,27,0,45,45,45,8,8,8,8,8,1207,5088,5606,5546,2922,52,52,52,52,52,52,8,0,29965,29968,29969,29961,0,0,0,29973,0,29975,29976,29978,29979,29980,0,29978,0,29980,29981,29981,29982,29983,29984,29984,29985,29985,29986,29986,29987]} 1. Nf3 {[%emt 0:00:04]} d5 {[%emt 0:04:58]} 2. g3 {[%emt 0:00:57]} Nf6 {[%emt 0:00:59]} 3. Bg2 {[%emt 0:00:22]} e6 {[%emt 0:00:44]} 4. O-O {[%emt 0:00:50]} c5 {[%emt 0:00:16]} 5. d4 {[%emt 0:11:10]} Nc6 {[%emt 0:00:27]} 6. c4 {[%emt 0:00:12]} dxc4 {[%emt 0:01:51]} 7. dxc5 {[%emt 0:00:15]} Bxc5 {[%emt 0:01:57]} 8. Qxd8+ {[%emt 0:01:47]} Nxd8 {[%emt 0:03:53]} 9. Ne5 {[%emt 0:01:51][%cal Ob1c3]} Bd7 {[%emt 0:01:07]} 10. Nxc4 {[%emt 0:11:08] White has an edge.} Bb5 {[%emt 0:02:53]} 11. Nbd2 {[%emt 0:00:16]} Rc8 {[%emt 0:00:45]} 12. b3 {[%emt 0:00:35]} Ke7 {[%emt 0:06:46]} 13. Bb2 {[%emt 0:12:29]} Nc6 {[%emt 0:02:03]} 14. e3 {[%emt 0:16:56]} Rhd8 {[%emt 0:10:04]} 15. Rfc1 {[%emt 0:00:13]} b6 {[%emt 0:08:28]} 16. a3 {[%emt 0:10:31]} a5 {[%emt 0:02:18]} 17. Rc2 {[%emt 0:08:44]} Nb8 {[%emt 0:04:18]} 18. Rac1 {[%emt 0:01:39][%cal Oc4b6]} Ba6 {[%emt 0:05:00]} 19. Nf3 {[%emt 0:02:47]} Ne8 {[%emt 0:08:08]} 20. h3 {[%emt 0:05:38][%cal Oc4a5] White is more active.} (20. Nxa5 bxa5 21. Ne5 (21. Rxc5 $2 {perishes.} Rxc5 22. Rxc5 Rd1+ $19) (21. b4 $2 axb4 22. axb4 Bxb4 $19) 21... Ba7 (21... Bd6 $2 22. Rxc8 Rxc8 23. Rxc8 $19) 22. Rxc8 Rxc8 $17) 20... Rd3 {[%emt 0:07:56] [#]} 21. Nxa5 $1 {[%emt 0:07:49]} bxa5 {[%emt 0:02:18]} 22. Rxc5 {[%emt 0:00:11]} Rxc5 {[%emt 0:01:04]} 23. Rxc5 {[%emt 0:00:04]} Rxb3 {[%emt 0:00:21][%cal Bd3b3,Bb3b8,Bb8b1][%mdl 32]} 24. Be5 {[%emt 0:02:22] This pair of bishops is nice.} f6 {[%emt 0:13:43]} 25. Bxb8 {[%emt 0:00:16]} Rxb8 {[%emt 0:00:05]} 26. Rxa5 {[%emt 0:00:03]} Rb1+ {[%emt 0:00:12]} 27. Kh2 {[%emt 0:00:03]} Nc7 {[%emt 0:00:07]} 28. g4 {[%emt 0:02:31]} Kd6 {[%emt 0:00:27]} 29. Nd2 {[%emt 0:00:14]} Rb5 {[%emt 0:01:35]} 30. Ne4+ {[%emt 0:00:28]} Ke7 {[%emt 0:00:08]} 31. Rxb5 {[%emt 0:01:21]} Bxb5 $16 {[%emt 0:00:06][%mdl 4096] Endgame. KBN-KBN} 32. Nc3 {[%emt 0:00:07]} Bc4 {[%emt 0:01:43]} 33. f4 {[%emt 0:00:29]} (33. a4 $142) 33... h6 {[%emt 0:01:09]} 34. Kg3 {[%emt 0:00:09]} g5 {[%emt 0:00:29]} 35. h4 {[%emt 0:00:07]} Nb5 {[%emt 0:00:26]} 36. Nxb5 {[%emt 0:00:31]} (36. Nb1 $1 $16) 36... Bxb5 {[%emt 0:00:01] KB-KB} 37. Kf2 {[%emt 0:02:22]} Kd6 {[%emt 0:02:08]} 38. hxg5 {[%emt 0:00:23]} hxg5 {[%emt 0:00:01]} 39. fxg5 {[%emt 0:00:34]} fxg5 {[%emt 0:00:01]} 40. Ke1 {[%emt 0:00:22]} Kc5 {[%emt 0:00:28]} 41. Kd2 {[%emt 0:00:08]} Ba6 {[%emt 0:00:47]} 42. Bf3 {[%emt 0:00:13]} e5 {[%emt 0:00:31]} 43. Kc3 {[%emt 0:00:13]} Bb5 {[%emt 0:00:19]} 44. Bd1 {[%emt 0:01:56]} Bf1 {[%emt 0:00:27]} 45. a4 {[%emt 0:00:13]} Ba6 {[%emt 0:00:30]} 46. Bf3 {[%emt 0:00:48] a5 would now be deadly.} Bf1 {[%emt 0:00:13]} 47. Be4 {[%emt 0:00:32] next a5 is good for White.} Be2 {[%emt 0:00:17]} 48. Bf5 {[%emt 0:00:04]} Ba6 {[%emt 0:00:10]} 49. Bd3 {[%emt 0:00:11]} (49. a5 $5 Bb7 $8 50. Kd3 $11) 49... Bc8 {[%emt 0:00:32][%mdl 8192]} (49... Bb7 $11) 50. Be2 $1 $18 {[%emt 0:00:10]} Bb7 {[%emt 0:00:16]} 51. a5 {[%emt 0:00:48]} Bg2 {[%emt 0:00:24]} 52. a6 $2 {[%emt 0:00:40]} (52. Kb3 $18 Bd5+ 53. Kc3) 52... Kb6 $14 {[%emt 0:00:24]} 53. Kb4 {[%emt 0:00:11]} e4 $1 {[%emt 0:00:23]} 54. Kc3 {[%emt 0:00:19] White threatens Kd2 and mate.} (54. Bc4 $5 Bf3 $8 55. Kc3 Bxg4 56. Kd4 $16) 54... Bf3 {[%emt 0:00:16]} 55. Bxf3 {[%emt 0:01:22]} exf3 {[%emt 0:00:01]} 56. Kd2 {[%emt 0:00:07]} Kxa6 {[%emt 0:00:06] KPP-KPP} 57. Ke1 {[%emt 0:00:12]} Kb5 {[%emt 0:00:05]} 58. Kf2 {[%emt 0:00:04]} Kc4 {[%emt 0:00:15]} 59. Kxf3 $11 {[%emt 0:00:05] Threatening mate with Ke4. KPP-KP} Kd5 {[%emt 0:00:08][%mdl 8192]} (59... Kd3 $11 60. Kf2 Kc4 61. Kg2 Kd5 62. Kf3 Ke5 63. Kf2 Kd5 64. Ke1 Ke5) 60. Kf2 $2 {[%emt 0:00:14]} (60. Ke2 Ke4 61. Kf2 Kd5 62. Ke1 Ke5 63. Kd2 Ke4 64. Ke2 Ke5 65. Kd3) 60... Ke5 $2 {[%emt 0:01:20][%mdl 8192]} (60... Kc4 $11 61. Kg2 Kc5 62. Kf1 Kc4 63. Kf2 Kd5 64. Ke1 Ke5 65. Kd2 Ke4) 61. Ke1 $1 {[%emt 0:00:18]} Ke6 {[%emt 0:00:35]} 62. Kd2 {[%emt 0:01:24]} Kd5 {[%emt 0:00:07]} 63. Kd1 $2 {[%emt 0:02:14]} (63. Kd3 {mates} Ke5 64. e4 Kf6 65. Kd4 Kf7 66. Kd5 Kf6 67. Kd6 Kf7 68. e5) 63... Ke4 $2 {[%emt 0:01:26][%mdl 8192]} (63... Ke5 $11 64. Kd2 Ke4 65. Ke2 Ke5 66. Kd3 Kd5 67. e4+ Ke5 68. Ke3 Kf6) 64. Ke2 {[%emt 0:00:04]} Kd5 $2 {[%emt 0:00:12][%mdl 8192]} (64... Ke5 $11 65. Kd3 Kd5 66. e4+ Ke5 67. Ke3 Ke6 68. Kd4 Kf7 69. e5 Ke7) 65. Kd3 {[%emt 0:00:24] White mates.} Ke5 {[%emt 0:00:28]} 66. e4 $1 {[%emt 0:00:08][%cal Be3e4,Be4e5,Be5e6][%mdl 32]} Kf4 {[%emt 0:00:04]} 67. Kd4 $1 {[%emt 0:00:02]} Kxg4 {[%emt 0:00:05] [#]} 68. e5 $1 {[%emt 0:00:02]} Kf5 {[%emt 0:00:53] [#]} 69. Kd5 $1 {[%emt 0:00:03]} g4 {[%emt 0:01:14]} 70. e6 {[%emt 0:00:04] Weighted Error Value: White=0.31/Black=0.42.  Loses game:     	---       	Black=5      Missed win:     	White=1     	---        Mistake:       	White=2     	---        Inaccurate:     	White=4     	Black=6      OK:         	White=19    	Black=11     Best:        	White=3     	Black=4      Strong:       	White=1     	Black=1} 1-0

[Event "10th Iberoamericano-ch 2024"]
[Site "Linares"]
[Date "2024.09.29"]
[Round "7.15"]
[White "Escalona Landi, Samid Eduardo"]
[Black "Veiga, Jose Francisco R P N"]
[Result "1/2-1/2"]
[ECO "A05"]
[WhiteElo "2305"]
[BlackElo "2404"]
[Annotator "RC"]
[PlyCount "148"]
[EventDate "2024.09.25"]
[EventType "swiss"]
[EventCountry "ESP"]
[SourceTitle "playchess.com"]
[Source "ChessBase"]
[SourceQuality "1"]
[TimeControl "5400+30"]

1. Nf3 {[%emt 0:06:42]} Nf6 {[%emt 0:00:13]} 2. g3 {[%emt 0:01:08]} g6 {[%emt 0:00:06]} 3. b3 {[%emt 0:00:01]} Bg7 {[%emt 0:00:15]} 4. Bb2 {[%emt 0:00:06]} O-O {[%emt 0:00:13]} 5. Bg2 {[%emt 0:00:02]} c5 {[%emt 0:00:22]} 6. c4 {[%emt 0:00:06]} d6 {[%emt 0:00:51]} 7. d4 {[%emt 0:00:05]} d5 {[%emt 0:00:34]} 8. O-O {[%emt 0:02:38]} cxd4 {[%emt 0:05:06]} 9. cxd5 {[%emt 0:00:30]} Qxd5 {[%emt 0:00:29]} 10. Qxd4 {[%emt 0:00:17]} Qh5 {[%emt 0:02:16]} 11. Qh4 {[%emt 0:00:30]} Qxh4 {[%emt 0:01:09]} 12. Nxh4 {[%emt 0:00:02]} Nc6 {[%emt 0:00:14]} 13. Bxc6 {[%emt 0:00:05]} bxc6 {[%emt 0:00:06]} 14. Na3 {[%emt 0:02:18]} Ba6 {[%emt 0:03:05]} 15. Rfe1 {[%emt 0:00:09]} Rfd8 {[%emt 0:01:21]} 16. Nf3 {[%emt 0:00:06]} Bh6 {[%emt 0:05:03]} 17. Bc1 {[%emt 0:04:25]} Bg7 {[%emt 0:00:25]} 18. Bb2 {[%emt 0:00:08]} Rac8 {[%emt 0:01:35]} 19. Nc4 {[%emt 0:04:28]} Bxc4 {[%emt 0:03:15]} 20. bxc4 {[%emt 0:00:02]} Ne4 {[%emt 0:00:25]} 21. Bxg7 {[%emt 0:00:13]} Kxg7 {[%emt 0:00:06]} 22. Rab1 {[%emt 0:00:56]} Kf6 {[%emt 0:08:55]} 23. Rb7 {[%emt 0:00:25]} a6 {[%emt 0:02:19]} 24. Rb3 {[%emt 0:06:40]} c5 {[%emt 0:03:45]} 25. Re3 {[%emt 0:08:18]} Nd6 {[%emt 0:00:58]} 26. Rd1 {[%emt 0:03:13]} Nxc4 {[%emt 0:10:40]} 27. Rxd8 {[%emt 0:00:13]} Rxd8 {[%emt 0:00:05]} 28. Rc3 {[%emt 0:00:05]} Nd2 {[%emt 0:06:51]} 29. Rxc5 {[%emt 0:00:49]} Nxf3+ {[%emt 0:00:05]} 30. exf3 {[%emt 0:00:04]} Rd6 {[%emt 0:05:24]} 31. f4 {[%emt 0:13:26]} e6 {[%emt 0:03:29]} 32. h4 {[%emt 0:00:13]} Rd5 {[%emt 0:00:24]} 33. Rc4 {[%emt 0:01:51]} Ra5 {[%emt 0:01:11]} 34. a4 {[%emt 0:00:06]} Ke7 {[%emt 0:01:23]} 35. Rd4 {[%emt 0:01:33]} Rc5 {[%emt 0:09:56]} 36. Rb4 {[%emt 0:01:32]} Kf6 {[%emt 0:01:49]} 37. Rb6 {[%emt 0:01:34]} Ra5 {[%emt 0:00:06]} 38. Rb4 {[%emt 0:00:04]} h6 {[%emt 0:00:15]} 39. Rc4 {[%emt 0:01:39]} g5 {[%emt 0:00:23]} 40. hxg5+ {[%emt 0:00:29]} hxg5 {[%emt 0:00:06]} 41. fxg5+ {[%emt 0:00:08]} Rxg5 {[%emt 0:00:23]} 42. Kg2 {[%emt 0:00:12]} Rf5 {[%emt 0:00:31]} 43. f4 {[%emt 0:00:27]} Rd5 {[%emt 0:00:25]} 44. Kf3 {[%emt 0:00:28]} Rd3+ {[%emt 0:00:33]} 45. Kg4 {[%emt 0:00:59]} Ra3 {[%emt 0:00:05]} 46. Rb4 {[%emt 0:00:38]} a5 {[%emt 0:00:23]} 47. Rc4 {[%emt 0:00:09]} Kg6 {[%emt 0:00:40]} 48. Kh4 {[%emt 0:00:50]} f5 {[%emt 0:00:40]} 49. g4 {[%emt 0:05:41]} Ra1 {[%emt 0:02:07]} 50. Rc6 {[%emt 0:03:33]} Rh1+ {[%emt 0:01:49]} 51. Kg3 {[%emt 0:00:05]} Rg1+ {[%emt 0:00:15]} 52. Kf2 {[%emt 0:00:22]} Rxg4 {[%emt 0:00:08]} 53. Rxe6+ {[%emt 0:00:02]} Kf7 {[%emt 0:00:09]} 54. Re5 {[%emt 0:00:20]} Rxf4+ {[%emt 0:00:18]} 55. Ke3 {[%emt 0:00:06]} Rxa4 {[%emt 0:00:16]} 56. Rxf5+ {[%emt 0:00:03]} Ke6 {[%emt 0:00:07]} 57. Rh5 {[%emt 0:00:03]} Ra1 {[%emt 0:00:21]} 58. Kd2 {[%emt 0:00:10]} Kd6 {[%emt 0:00:18]} 59. Kc2 {[%emt 0:00:07]} Kc6 {[%emt 0:00:13]} 60. Kb2 {[%emt 0:00:07]} Ra4 {[%emt 0:00:05]} 61. Kb3 {[%emt 0:00:04]} Rb4+ {[%emt 0:00:46]} 62. Ka3 {[%emt 0:00:08]} Rb5 {[%emt 0:00:12]} 63. Rh6+ {[%emt 0:00:23]} Kc5 {[%emt 0:00:14]} 64. Rh5+ {[%emt 0:03:12]} Kc4 {[%emt 0:00:14]} 65. Rh4+ {[%emt 0:00:13]} Kc5 {[%emt 0:00:08]} 66. Rh5+ {[%emt 0:00:26]} Kc4 {[%emt 0:00:09]} 67. Rxb5 {[%emt 0:00:04]} Kxb5 {[%emt 0:00:05]} 68. Kb3 {[%emt 0:00:10]} a4+ {[%emt 0:00:06]} 69. Ka3 {[%emt 0:00:03]} Ka5 {[%emt 0:00:05]} 70. Kb2 {[%emt 0:00:06]} Kb4 {[%emt 0:00:03]} 71. Ka2 {[%emt 0:00:05]} a3 {[%emt 0:00:04]} 72. Ka1 {[%emt 0:00:04]} Kb3 {[%emt 0:00:04]} 73. Kb1 {[%emt 0:00:04]} a2+ {[%emt 0:00:03]} 74. Ka1 {[%emt 0:00:07]} Ka3 {[%emt 0:00:11]} 1/2-1/2

[Event "10th Iberoamericano-ch 2024"]
[Site "Linares"]
[Date "2024.09.29"]
[Round "7.16"]
[White "Mingarro Carceller, Sergi"]
[Black "Ynojosa Aponte, Felix Jose"]
[Result "0-1"]
[ECO "B30"]
[WhiteElo "2273"]
[BlackElo "2398"]
[Annotator "RC"]
[PlyCount "73"]
[EventDate "2024.09.25"]
[EventType "swiss"]
[EventCountry "ESP"]
[SourceTitle "playchess.com"]
[Source "ChessBase"]
[SourceQuality "1"]
[TimeControl "5400+30"]

1. e4 {[%emt 0:00:04]} c5 {[%emt 0:09:10]} 2. Nf3 {[%emt 0:00:14]} Nc6 {[%emt 0:00:02]} 3. Bb5 {[%emt 0:00:11]} e6 {[%emt 0:00:03]} 4. O-O {[%emt 0:00:23]} Nge7 {[%emt 0:00:15]} 5. c3 {[%emt 0:00:18]} a6 {[%emt 0:00:14]} 6. Ba4 {[%emt 0:00:27]} b5 {[%emt 0:00:07]} 7. Bc2 {[%emt 0:00:15]} Bb7 {[%emt 0:00:16]} 8. Re1 {[%emt 0:00:58]} d5 {[%emt 0:00:13]} 9. a4 {[%emt 0:02:00]} d4 {[%emt 0:00:19]} 10. axb5 {[%emt 0:06:35]} axb5 {[%emt 0:00:04]} 11. Rxa8 {[%emt 0:00:11]} Bxa8 {[%emt 0:00:05]} 12. Na3 {[%emt 0:03:59]} b4 {[%emt 0:07:25]} 13. Nb5 {[%emt 0:03:26]} g6 {[%emt 0:08:35]} 14. e5 {[%emt 0:10:35]} Bh6 {[%emt 0:00:29]} 15. cxd4 {[%emt 0:08:49]} cxd4 {[%emt 0:00:35]} 16. Nd6+ {[%emt 0:02:20]} Kf8 {[%emt 0:00:03]} 17. d3 {[%emt 0:01:50]} Bxc1 {[%emt 0:03:26]} 18. Qxc1 {[%emt 0:01:06]} Nxe5 {[%emt 0:04:00]} 19. Qh6+ {[%emt 0:16:11]} Kg8 {[%emt 0:00:03]} 20. Nxe5 {[%emt 0:00:31]} Qxd6 {[%emt 0:00:03]} 21. Ng4 {[%emt 0:01:33]} f5 {[%emt 0:21:24]} 22. Bb3 {[%emt 0:07:24]} Bd5 {[%emt 0:07:47]} 23. Nf6+ {[%emt 0:04:21]} Kf7 {[%emt 0:00:05]} 24. Bxd5 {[%emt 0:01:33]} Nxd5 {[%emt 0:03:21]} 25. Nxh7 {[%emt 0:01:35]} Re8 {[%emt 0:16:02]} 26. g3 {[%emt 0:10:30]} e5 {[%emt 0:06:07]} 27. Ng5+ {[%emt 0:02:57]} Kf6 {[%emt 0:00:17]} 28. Qh4 {[%emt 0:04:36]} Qb8 {[%emt 0:01:21]} 29. Ra1 {[%emt 0:01:46]} Rh8 {[%emt 0:02:32]} 30. Ra6+ {[%emt 0:01:15]} Kg7 {[%emt 0:01:52]} 31. Ne6+ {[%emt 0:00:28]} Kf7 {[%emt 0:00:33]} 32. Qg5 {[%emt 0:01:26]} Qc8 {[%emt 0:03:00]} 33. Ra7+ {[%emt 0:01:52]} Kxe6 {[%emt 0:00:53]} 34. Qxg6+ {[%emt 0:00:07]} Nf6 {[%emt 0:00:03]} 35. Qf7+ {[%emt 0:00:11]} Kd6 {[%emt 0:00:01]} 36. Qxf6+ {[%emt 0:00:13]} Kc5 {[%emt 0:00:08]} 37. Ra5# {[%emt 0:00:13]} 0-1